[Event "4th Tata Steel India Rapid Women 2022"]
[Site "Kolkota"]
[Date "2022.11.29"]
[Round "3.1"]
[White "Vaishali, Rameshbabu"]
[Black "Vantika Agrawal"]
[Result "1-0"]
[ECO "D35"]
[WhiteElo "2454"]
[BlackElo "2362"]
[Annotator "TA"]
[PlyCount "81"]
[EventDate "2022.11.29"]
[EventType "tourn"]
[EventCountry "IND"]
[SourceTitle "playchess.com"]
[Source "ChessBase"]
[SourceQuality "1"]
[TimeControl "900+10"]

{[%evp 12,81,20,10,15,0,0,-16,-10,-22,12,11,21,0,0,0,87,87,95,87,96,91,300,287,310,298,288,285,268,254,241,114,279,281,339,331,443,443,554,167,158,151,362,318,575,571,563,537,2112,2083,29987,2511,29986,893,1455,1342,29985,29986,29986,29986,29991,29992,29992,29993,29993,29994,29994,29995,29995,29996,29998,29999]} 1. d4 {[%emt 0:00:06]} Nf6 {[%emt 0:00:06]} 2. c4 {[%emt 0:00:03]} e6 {[%emt 0:01:00]} 3. Nc3 {[%emt 0:00:03]} d5 {[%emt 0:00:02]} 4. cxd5 {[%emt 0:00:04]} Nxd5 {[%emt 0:00:02]} 5. e4 {[%emt 0:00:05]} Nxc3 {[%emt 0:00:03]} 6. bxc3 {[%emt 0:00:02]} c5 {[%emt 0:00:02]} 7. Rb1 {[%emt 0:00:07]} Be7 {[%emt 0:00:11] D35: Queen's Gambit Declined: Exchange Variation.} 8. Nf3 {[%emt 0:00:05]} O-O {[%emt 0:00:22]} 9. h4 {[%emt 0:01:01]} b6 {[%emt 0:01:17] The position is equal. is now debated instead of 9...cxd4.} 10. h5 {[%emt 0:00:16]} h6 {[%emt 0:00:19]} 11. Rh3 {[%emt 0:00:56]} Bb7 {[%emt 0:02:10]} 12. Bd3 {[%emt 0:00:32] [#]} (12. Rg3 $5 {[%cal Rc1h6]} Kh8 13. Bd3 $11) 12... cxd4 $146 {[%emt 0:00:40]} ({Predecessor:} 12... Nd7 13. Rg3 Kh8 14. Qd2 Rg8 15. Qf4 Nf6 16. Ne5 Qe8 17. Qf3 Rd8 18. Be3 Bd6 19. Bxh6 Bxe5 20. dxe5 Rxd3 21. Qxd3 Nxe4 {0-1 (29) Yakovich,Y (2526)-Moskalenko,A (2515) Chess.com INT 2020}) 13. cxd4 {[%emt 0:00:13][%cal Bc3d4,Bd4e5][%mdl 32]} Nc6 {[%emt 0:00:52]} (13... Nd7 $11) 14. Rg3 $1 $16 {[%emt 0:01:51] White leaves nothing to chance now.} Kh8 {[%emt 0:00:36]} (14... Nxd4 $2 15. Bxh6 Bf6 16. Bxg7 $1 {[%mdl 512]} Bxg7 17. h6 Nxf3+ 18. Qxf3 $18 (18. gxf3 Qd4 $18)) 15. Qd2 {[%emt 0:01:50][%cal Og3g7]} Rg8 {[%emt 0:03:30]} (15... Nxd4 $2 16. Nxd4 Bf6 17. Nf3 $18) 16. a3 {[%emt 0:02:25]} Qd6 $2 {[%emt 0:05:00]} (16... Nxd4 $2 17. Nxd4 Bf6 18. Nf3 $18) (16... Rc8 $16 {was necessary.}) 17. Bb2 $1 $18 {[%emt 0:02:44][%cal Od4d5] aiming for d5!} e5 {[%emt 0:01:17]} 18. dxe5 {[%emt 0:01:00]} ({Stronger than} 18. Nxe5 Nxe5 19. dxe5 Qe6 $14) 18... Qe6 {[%emt 0:00:11]} 19. Qe2 {[%emt 0:00:21]} Bc5 {[%emt 0:00:25]} 20. Bc4 {[%emt 0:00:21]} Qe7 {[%emt 0:00:04]} 21. Qd2 $40 {[%emt 0:02:10][%mdl 128] White goes for the king.} (21. e6 $1 $18 {[%cal Re6f7] and the rest is easy.} fxe6 22. Bxe6 $1 {[%mdl 512]} Bxa3 23. Bxg8 Bxb2 24. Qxb2 Rxg8 25. Kf1) 21... Rad8 $2 {[%emt 0:00:17]} (21... Kh7 $16) 22. Bd5 {[%emt 0:00:06][%cal Oe5e6] Strongly threatening e6!} Kh7 {[%emt 0:00:11] Prevents e6.} 23. Qf4 {[%emt 0:00:40]} Rdf8 {[%emt 0:00:09]} 24. Rd1 {[%emt 0:00:33]} Nd8 {[%emt 0:00:07]} 25. Nh4 $2 {[%emt 0:01:15]} (25. Bxb7 Ne6 26. Qf5+ g6 27. hxg6+ fxg6 28. Qh3 Qxb7 29. Qxe6 Qxe4+ 30. Kf1) 25... Ne6 {[%emt 0:00:13]} 26. Qg4 {[%emt 0:00:05] White is more active.} Ng5 $2 {[%emt 0:00:11]} (26... Bc8 $16) 27. Nf5 {[%emt 0:00:10]} Qc7 {[%emt 0:00:09] [#]} (27... Qd7 {was called for.} 28. Nxh6 Qxg4 29. Nxg4 Bc8) 28. Nxh6 $1 {[%emt 0:00:32][%mdl 512]} gxh6 {[%emt 0:00:11]} 29. Qf5+ {[%emt 0:00:01]} Rg6 {[%emt 0:00:10]} 30. Bxb7 {[%emt 0:00:17] Threatens to win with Rxg5.} Qxb7 {[%emt 0:00:05]} 31. hxg6+ {[%emt 0:00:11]} (31. Rxg5 $142 Bxf2+ 32. Kxf2 hxg5 33. hxg6+ Kg8 34. g7 Qc8 35. gxf8=Q+ Qxf8 36. Qxg5+ Qg7 37. Rd8+ Kh7 38. Qh5+ Qh6 {[#]} 39. Rh8+ $3 {[%mdl 512]} Kxh8 40. e6+ f6 41. Qxh6+ Kg8 42. Qg6+ Kh8 43. Bxf6#) 31... Kg8 {[%emt 0:00:16]} 32. gxf7+ {[%emt 0:00:12]} (32. Rxg5 $142 hxg5 33. Rd7 Qxd7 34. Qxd7 Kg7 35. e6+ Kxg6 36. e7 f6 37. Qf5+ Kh6 38. exf8=R) 32... Rxf7 {[%emt 0:00:09]} 33. Qg6+ {[%emt 0:00:06]} Kf8 {[%emt 0:00:12]} 34. Qxh6+ {[%emt 0:00:04] White mates.} Ke8 {[%emt 0:00:04]} 35. f3 {[%emt 0:00:18]} (35. Rxg5 {gets mated.} Qxe4+ 36. Kf1 Rxf2+ 37. Kg1 Rxg2+ 38. Kh1 Rxg5+ 39. Kh2 Qg2#) 35... Bf2+ {[%emt 0:00:14]} 36. Kxf2 {[%emt 0:00:04]} Nxe4+ {[%emt 0:00:02]} 37. Kg1 {[%emt 0:00:01]} Nxg3 {[%emt 0:00:05]} 38. Qe6+ {[%emt 0:00:21]} Kf8 {[%emt 0:00:23]} 39. Rd8+ {[%emt 0:00:02]} Kg7 {[%emt 0:00:11]} 40. Qg4+ {[%emt 0:00:02]} Kh6 {[%emt 0:00:10]} 41. Rh8+ {[%emt 0:00:05] Weighted Error Value: White=0.21 (precise) /Black=0.94} 1-0

[Event "4th Tata Steel India Rapid Women 2022"]
[Site "Kolkota"]
[Date "2022.11.29"]
[Round "3.2"]
[White "Savitha Shri B"]
[Black "Muzychuk, Anna"]
[Result "1/2-1/2"]
[ECO "C82"]
[WhiteElo "2411"]
[BlackElo "2525"]
[Annotator "TA"]
[PlyCount "90"]
[EventDate "2022.11.29"]
[EventType "tourn"]
[EventCountry "IND"]
[SourceTitle "playchess.com"]
[Source "ChessBase"]
[SourceQuality "1"]
[TimeControl "900+10"]

{[%evp 23,90,42,37,44,43,25,32,14,30,30,33,32,38,0,0,0,0,0,0,0,0,-7,24,13,25,20,22,24,22,28,29,9,9,0,0,0,0,0,0,0,0,0,0,0,0,0,1,0,0,0,0,0,0,0,0,0,0,0,0,0,0,0,0,0,0,0,0,0,0]} 1. e4 {[%emt 0:00:01]} e5 {[%emt 0:00:01]} 2. Nf3 {[%emt 0:00:02]} Nc6 {[%emt 0:00:01]} 3. Bb5 {[%emt 0:00:01]} a6 {[%emt 0:00:01]} 4. Ba4 {[%emt 0:00:01]} Nf6 {[%emt 0:00:01]} 5. O-O {[%emt 0:00:02]} Nxe4 {[%emt 0:00:08]} 6. d4 {[%emt 0:00:01]} b5 {[%emt 0:00:03]} 7. Bb3 {[%emt 0:00:02]} d5 {[%emt 0:00:01]} 8. dxe5 {[%emt 0:00:03]} Be6 {[%emt 0:00:02]} 9. c3 {[%emt 0:00:01]} Bc5 {[%emt 0:00:21]} 10. Nbd2 {[%emt 0:00:02]} O-O {[%emt 0:00:16]} 11. Bc2 {[%emt 0:00:01]} Bf5 {[%emt 0:01:46]} 12. Nb3 {[%emt 0:02:09]} Bg6 {[%emt 0:00:10]} 13. Nfd4 {[%emt 0:02:35] C82: Open Ruy Lopez: 9 c3 without 9...Be7.} Bxd4 {[%emt 0:00:23]} 14. cxd4 {[%emt 0:00:02] [#] Strongly threatening f3.} a5 $1 {[%emt 0:03:40]} 15. a4 {[%emt 0:02:38] aiming for f3. White is slightly better.} bxa4 {[%emt 0:01:42]} (15... Nb4 $5 {[%cal Rb4c2]}) 16. Rxa4 {[%emt 0:00:08]} Nb4 $1 {[%emt 0:01:12][%cal Oe4c3]} 17. Bxe4 {[%emt 0:05:56]} ({Weaker is} 17. Nxa5 Nxc2 18. Nc6 (18. Qxc2 $2 {loses.} Ng3 $17) 18... Qd7 19. Qxc2 {[#]} Nd2 $1 {[%mdl 512]} 20. Qxd2 Rxa4 $19) 17... dxe4 {[%emt 0:00:07]} 18. Nc5 {[%emt 0:01:07] Against e3} e3 {[%emt 0:02:22]} 19. Bxe3 {[%emt 0:00:25] [#] Threatens to win with Qg4.} Bc2 $146 {[%emt 0:00:44]} ({Predecessor:} 19... Qd5 20. Qg4 Rfd8 21. f4 Nd3 22. f5 Nxc5 23. dxc5 h5 24. Qg5 Qb3 25. Rh4 Bxf5 26. Rxf5 {1-0 (34) Maas,T (2083)-Timmermans,I (2176) Belgium 2016}) 20. Qg4 {[%emt 0:00:01]} Bxa4 {[%emt 0:00:15]} 21. Bh6 {[%emt 0:00:19][%csl Gh6][%cal Rg4g7]} g6 {[%emt 0:00:04] ...Bb5 is the strong threat.} 22. Nxa4 {[%emt 0:00:24]} ({Much weaker is} 22. Bxf8 Bb5 23. Bh6 Bxf1 24. Kxf1 f5 $17) 22... f5 {[%emt 0:00:20]} 23. Qe2 {[%emt 0:00:24]} Qxd4 {[%emt 0:00:58] And now ...Rfe8 would win.} 24. Bxf8 {[%emt 0:00:01]} Rxf8 {[%emt 0:00:03]} 25. Rd1 {[%emt 0:00:14]} Qe4 {[%emt 0:00:34]} 26. Qxe4 {[%emt 0:00:41]} (26. Qb5 {seems wilder.} c6 27. Qxa5 Nd3 28. Nc5) 26... fxe4 $11 {[%emt 0:00:01][%mdl 4096] Endgame KRN-KRN} 27. Nc5 {[%emt 0:00:05] Prevents Nd3.} Re8 {[%emt 0:01:12] The position is equal.} (27... Rf5 {simplifies} 28. Nxe4 Rxe5 29. f3 Kf7) 28. e6 {[%emt 0:00:05]} (28. Nxe4 {simplifies} Rxe5 29. f3 Kf7 30. Rd7+) 28... Nd3 $1 {[%emt 0:00:24] Against b3} 29. Nxe4 {[%emt 0:00:48] Black must now prevent Nf6+.} Rxe6 {[%emt 0:00:10]} 30. Rxd3 {[%emt 0:00:01]} Rxe4 {[%emt 0:00:02][%cal Re4e1] KR-KR} 31. f3 {[%emt 0:00:01]} Re2 {[%emt 0:00:39]} 32. Rd8+ {[%emt 0:00:13]} Kf7 {[%emt 0:01:30]} 33. Rd7+ {[%emt 0:00:01]} Re7 {[%emt 0:00:01][%cal Be2e7,Be7e1,Be1b1,Bb1b2][%mdl 32]} 34. Rd5 {[%emt 0:00:02]} Re1+ {[%emt 0:00:10]} 35. Kf2 {[%emt 0:00:09]} Rb1 {[%emt 0:00:11]} 36. Rd7+ {[%emt 0:00:46]} Kf6 {[%emt 0:00:05]} 37. Rxc7 {[%emt 0:00:02]} Rxb2+ {[%emt 0:00:02]} 38. Kg3 {[%emt 0:00:02]} h5 {[%emt 0:00:10]} 39. h4 {[%emt 0:00:03]} a4 {[%emt 0:00:11]} 40. Ra7 {[%emt 0:00:01]} Ra2 {[%emt 0:00:01]} 41. Ra6+ {[%emt 0:00:01]} Kg7 {[%emt 0:00:07]} 42. Kf4 {[%emt 0:00:17]} Rxg2 {[%emt 0:00:07]} 43. Rxa4 {[%emt 0:00:01]} Kh6 {[%emt 0:00:06]} 44. Ra6 {[%emt 0:00:13]} Rg1 {[%emt 0:00:03]} 45. Rb6 {[%emt 0:00:01]} Rg2 {[%emt 0:00:04] Weighted Error Value: White=0.03 (flawless) /Black=0.03 (flawless)} 1/2-1/2

[Event "4th Tata Steel India Rapid Women 2022"]
[Site "Kolkota"]
[Date "2022.11.29"]
[Round "3.3"]
[White "Muzychuk, Mariya"]
[Black "Koneru, Humpy"]
[Result "1/2-1/2"]
[ECO "C42"]
[WhiteElo "2528"]
[BlackElo "2574"]
[Annotator "TA"]
[PlyCount "70"]
[EventDate "2022.11.29"]
[EventType "tourn"]
[EventCountry "IND"]
[SourceTitle "playchess.com"]
[Source "ChessBase"]
[SourceQuality "1"]
[TimeControl "900+10"]

{[%evp 21,70,29,14,22,21,21,28,28,23,20,20,14,20,18,24,25,17,11,10,11,18,15,12,12,14,14,22,16,18,0,0,0,12,0,0,0,0,0,4,-24,-18,-22,-22,-88,-84,-102,-114,-195,-5,0,0]} 1. e4 {[%emt 0:00:03]} e5 {[%emt 0:00:02]} 2. Nf3 {[%emt 0:00:01]} Nf6 {[%emt 0:00:03]} 3. Nxe5 {[%emt 0:00:05]} d6 {[%emt 0:00:02]} 4. Nf3 {[%emt 0:00:02]} Nxe4 {[%emt 0:00:03]} 5. d4 {[%emt 0:00:03]} d5 {[%emt 0:00:07]} 6. Bd3 {[%emt 0:00:03]} Bd6 {[%emt 0:00:07]} 7. O-O {[%emt 0:00:19]} O-O {[%emt 0:00:03]} 8. c4 {[%emt 0:00:10]} c6 {[%emt 0:00:12]} 9. Nc3 {[%emt 0:00:22]} Nxc3 {[%emt 0:02:18]} 10. bxc3 {[%emt 0:00:02]} dxc4 {[%emt 0:00:02]} 11. Bxc4 {[%emt 0:00:01]} Bf5 {[%emt 0:00:22]} 12. Bg5 $1 {[%emt 0:00:25] 12.Bg5 is better than 12.Re1. C42: Petroff Defence: 3 Nxe5 and unusual White 3rd moves.} Qa5 {[%emt 0:00:44]} 13. Nh4 {[%emt 0:00:36]} Be6 {[%emt 0:01:03]} 14. Bxe6 {[%emt 0:00:04] [#] Strongly threatening Bf5. White has an edge.} Qxg5 {[%emt 0:00:04]} 15. Nf3 {[%emt 0:00:01]} (15. Qg4 {simplifies} Qxg4 16. Bxg4 g6 17. Rfb1) 15... Qa5 {[%emt 0:00:31]} 16. Bb3 {[%emt 0:00:21]} Nd7 {[%emt 0:00:41]} 17. Qd3 {[%emt 0:00:15]} Rae8 {[%emt 0:02:13]} 18. Rfe1 {[%emt 0:00:44]} g6 {[%emt 0:02:02]} 19. h4 {[%emt 0:02:11]} (19. Rab1 {simplifies} Nf6 20. g3 Kg7 21. c4) 19... Kg7 {[%emt 0:01:02]} 20. Ng5 {[%emt 0:00:32]} Rxe1+ {[%emt 0:00:22]} 21. Rxe1 {[%emt 0:00:02]} Nf6 {[%emt 0:00:48] [#]} 22. g3 $146 {[%emt 0:01:06]} ({Predecessor:} 22. Qf3 Qf5 23. Qxf5 gxf5 24. Bc2 f4 25. c4 c5 26. d5 h6 27. Nf3 Re8 28. Kf1 Rxe1+ 29. Kxe1 Nd7 30. Ke2 Kf6 31. Nd2 Ke5 32. Kd3 f5 33. Nf3+ {½-½ (33) Moussard,J (2630)-Bjerre,J (2601) Terme Catez 2022}) 22... h6 {[%emt 0:02:57]} 23. Nf3 {[%emt 0:02:49]} Rd8 {[%emt 0:00:33]} 24. Kg2 {[%emt 0:01:52]} Qc7 {[%emt 0:00:33]} 25. Qc4 {[%emt 0:01:37]} b5 {[%emt 0:00:34]} 26. Qd3 {[%emt 0:00:22]} a6 {[%emt 0:01:35]} 27. a4 {[%emt 0:00:51]} Nh5 {[%emt 0:00:12][%cal Rd6g3]} 28. Nd2 {[%emt 0:01:32]} Nf6 {[%emt 0:00:02]} 29. Re3 {[%emt 0:00:57]} Qb7 {[%emt 0:00:16]} 30. Kg1 {[%emt 0:00:30]} (30. Rf3 {with more complications.} c5 31. dxc5 Be7 32. Qe3) 30... c5 {[%emt 0:00:21] Threatens to win with ...c4.} 31. axb5 {[%emt 0:00:56]} axb5 {[%emt 0:00:02] Hoping for ...c4.} 32. dxc5 {[%emt 0:00:39]} (32. Qb1 $11) 32... Be7 $17 {[%emt 0:00:14]} 33. Qe2 {[%emt 0:00:11]} Bxc5 {[%emt 0:00:03]} 34. Re5 {[%emt 0:00:16] [#]} (34. Rd3 $17 Re8 35. Qd1) 34... Qb6 $2 {[%emt 0:00:23]} (34... Qc7 $1 $19 {[%cal Of6g4] And now ...Ng4! would win.} 35. Nf1 h5) 35. Ne4 $1 $11 {[%emt 0:00:22]} Nxe4 {[%emt 0:00:10] Weighted Error Value: White=0.10 (very precise) /Black=0.12 (very precise)} 1/2-1/2

[Event "4th Tata Steel India Rapid Women 2022"]
[Site "Kolkota"]
[Date "2022.11.29"]
[Round "3.4"]
[White "Kiolbasa, Oliwia"]
[Black "Dzagnidze, Nana"]
[Result "0-1"]
[ECO "B48"]
[WhiteElo "2406"]
[BlackElo "2517"]
[Annotator "TA"]
[PlyCount "170"]
[EventDate "2022.11.29"]
[EventType "tourn"]
[EventCountry "IND"]
[SourceTitle "playchess.com"]
[Source "ChessBase"]
[SourceQuality "1"]
[TimeControl "900+10"]

{[%evp 14,170,33,19,25,25,25,25,25,21,44,37,44,22,21,21,0,0,11,0,0,0,0,0,0,-1,0,-13,-16,-31,-18,-25,-27,-41,-20,-26,0,-35,-18,-28,-16,-49,-49,-52,-49,-47,-40,-40,-45,-41,-45,-86,-82,-85,-85,-78,-78,-66,-66,-66,-54,-54,-37,-26,-23,-23,-23,-445,-438,-393,-387,-477,-457,-471,-449,-446,-386,-449,-240,-250,-291,-303,-229,-449,-423,-423,-391,-366,-348,-536,-277,-581,-573,-583,-277,-277,-314,-457,-433,-805,-801,-804,-798,-799,-786,-782,-742,-768,-625,-593,-573,-560,-411,-393,-95,-95,-95,-95,-95,-95,-95,-95,-95,-95,-95,-95,-95,-95,-95,-95,-95,-132,-95,-11589,-132,-4035,-4035,-1702,-132,-132,-132,-1813,-1228,-29958,-29959,-29961,-3110,-29974,-29975,-29971,-29973,-29973,-29973,-29977,-29978,-29978,-29979,-29975,-29975]} 1. e4 {[%emt 0:00:03]} c5 {[%emt 0:00:05]} 2. Nf3 {[%emt 0:00:03]} e6 {[%emt 0:00:06]} 3. d4 {[%emt 0:00:03]} cxd4 {[%emt 0:00:02]} 4. Nxd4 {[%emt 0:00:02]} Nc6 {[%emt 0:00:01]} 5. Nc3 {[%emt 0:00:06]} Qc7 {[%emt 0:00:02]} 6. Be3 {[%emt 0:00:08]} a6 {[%emt 0:00:02]} 7. a3 {[%emt 0:00:02]} b5 {[%emt 0:00:23]} 8. Nxc6 {[%emt 0:00:30]} dxc6 {[%emt 0:00:52] B48: Sicilian: Taimanov: 5 Nc3 Qc7 6 Be3 a6 without Be2.} 9. Qg4 {[%emt 0:01:14]} Nf6 {[%emt 0:03:12][%cal Bg8f6,Bf6d7,Bd7c5][%mdl 32]} 10. Qg3 {[%emt 0:00:05]} Qxg3 {[%emt 0:00:15] White has an edge.} 11. hxg3 {[%emt 0:00:03]} e5 {[%emt 0:00:28]} 12. f3 {[%emt 0:00:45]} Be6 {[%emt 0:01:14] [#]} 13. Kf2 $146 {[%emt 0:02:50]} (13. a4 $5 {[%cal Ra4b5]}) ({Predecessor:} 13. g4 Nd7 14. a4 Rc8 15. axb5 axb5 16. Be2 Bc5 17. Kf2 O-O 18. g5 Ra8 19. Rhd1 {1-0 (26) Csonka,B (2498)-Grischuk,A (2777) Chess.com INT 2021}) 13... Be7 {[%emt 0:02:01]} 14. g4 {[%emt 0:00:12]} Nd7 {[%emt 0:00:18]} 15. Be2 {[%emt 0:00:46]} f6 {[%emt 0:00:16]} 16. g3 {[%emt 0:01:04]} h6 {[%emt 0:00:39]} 17. a4 {[%emt 0:03:13][%cal Ra4b5]} O-O {[%emt 0:00:54]} 18. f4 {[%emt 0:00:41]} Nc5 {[%emt 0:01:52] White should prevent ...b4.} 19. b4 {[%emt 0:04:07]} Nb7 {[%emt 0:00:00]} 20. Rab1 {[%emt 0:00:11]} Rfd8 {[%emt 0:02:00]} 21. Rhd1 {[%emt 0:00:14]} Rxd1 {[%emt 0:00:18]} 22. Bxd1 {[%emt 0:00:01]} Kf8 {[%emt 0:01:18]} 23. Be2 {[%emt 0:00:27]} Rc8 {[%emt 0:01:57]} 24. Kf3 {[%emt 0:02:01]} Bf7 {[%emt 0:00:00]} 25. Kf2 {[%emt 0:00:06]} Be8 {[%emt 0:00:00]} 26. Bd3 {[%emt 0:00:16]} Nd8 {[%emt 0:00:13]} 27. axb5 {[%emt 0:00:10]} axb5 {[%emt 0:00:03]} 28. Ne2 {[%emt 0:00:13]} Ra8 {[%emt 0:00:09]} 29. c4 {[%emt 0:00:07]} Ra3 {[%emt 0:01:02]} 30. Nc1 {[%emt 0:00:02]} bxc4 {[%emt 0:00:07]} 31. Bxc4 {[%emt 0:00:06]} Nb7 {[%emt 0:00:35]} 32. Be2 {[%emt 0:00:10]} Nd6 {[%emt 0:00:00]} 33. Bd3 {[%emt 0:00:11]} Bg6 {[%emt 0:00:00] Black is more active.} 34. f5 {[%emt 0:00:14]} Bf7 $36 {[%emt 0:00:00][%mdl 2048] Black is in control.} 35. Bc5 {[%emt 0:00:07]} Nb5 {[%emt 0:00:04]} 36. Rb2 $1 {[%emt 0:00:23]} Bxc5+ {[%emt 0:00:21]} 37. bxc5 {[%emt 0:00:02]} Rc3 {[%emt 0:00:01]} 38. Rc2 {[%emt 0:00:07]} Ke7 {[%emt 0:00:17]} 39. Rxc3 {[%emt 0:00:16]} Nxc3 $11 {[%emt 0:00:01][%mdl 4096] Endgame KBN-KBN} 40. Ne2 $2 {[%emt 0:00:06][%mdl 8192]} (40. Bc2 $1 $11 {and White has nothing to worry.}) 40... Na4 $19 {[%emt 0:00:03]} 41. Ke3 {[%emt 0:00:18]} Nxc5 {[%emt 0:00:02]} 42. Bc2 {[%emt 0:00:01]} Kd6 {[%emt 0:00:20]} 43. Nc3 {[%emt 0:00:08]} Nd7 {[%emt 0:00:04]} 44. Na4 {[%emt 0:00:11]} Bc4 {[%emt 0:00:02]} 45. Bd1 {[%emt 0:00:16]} c5 {[%emt 0:00:18]} (45... Bb5 $142 {Hoping for ...Bxa4.} 46. Nc3 Kc5) 46. Kd2 {[%emt 0:00:10]} Kc6 {[%emt 0:00:19]} 47. Kc3 {[%emt 0:00:02]} Bb5 {[%emt 0:00:05]} 48. Nb2 $2 {[%emt 0:00:24]} (48. Bb3 {was worth a try.}) 48... Nb6 {[%emt 0:00:03]} 49. Bf3 {[%emt 0:00:10]} Bf1 {[%emt 0:00:20]} 50. Bd1 {[%emt 0:00:08]} Kb5 {[%emt 0:00:13]} 51. Bc2 {[%emt 0:00:12]} (51. Bf3 $142) 51... c4 {[%emt 0:00:10]} 52. Bd1 $2 {[%emt 0:00:01]} (52. Nd1 {nothing else works.}) 52... Kc5 {[%emt 0:00:22]} 53. Bf3 {[%emt 0:00:08]} Bh3 {[%emt 0:00:05]} (53... Nc8 $142 54. Na4+ Kb5) 54. Be2 {[%emt 0:00:18]} Bg2 {[%emt 0:00:03]} 55. Bxc4 {[%emt 0:00:14]} (55. Nxc4 $142 Nxc4 56. Bxc4) 55... Bxe4 {[%emt 0:00:10]} 56. Be2 {[%emt 0:00:08]} (56. Bb3 $142 Nd5+ 57. Kd2) 56... Nd5+ {[%emt 0:00:10]} 57. Kd2 {[%emt 0:00:01]} Kd4 {[%emt 0:00:17]} 58. Nc4 {[%emt 0:00:04]} Nc3 {[%emt 0:00:04]} 59. Nd6 {[%emt 0:00:13]} Bc6 {[%emt 0:00:14] ...Ne4+ is the strong threat.} 60. Nf7 {[%emt 0:00:18]} e4 {[%emt 0:00:08][%cal Be5e4,Be4e3][%mdl 32]} 61. Nd8 {[%emt 0:00:06]} e3+ {[%emt 0:00:09]} 62. Ke1 {[%emt 0:00:02]} Bd5 {[%emt 0:00:04]} 63. Ne6+ {[%emt 0:00:23]} Bxe6 $2 {[%emt 0:00:14]} (63... Ke4 $19 {is more deadly. aiming for ...Nxe2.} 64. Nc5+ Ke5 65. Nd3+ Kd4) 64. fxe6 {[%emt 0:00:01] And now e7 would win. KB-KN} Nd5 {[%emt 0:00:02] Against e7} 65. Bb5 {[%emt 0:00:06]} Ke5 {[%emt 0:00:15]} 66. Bd7 {[%emt 0:00:08]} Kd6 {[%emt 0:00:07] White must now prevent ...Nc3.} 67. Ke2 {[%emt 0:00:03]} Nb6 {[%emt 0:00:15]} 68. Bb5 {[%emt 0:00:03] Inhibits Nc4.} Kxe6 {[%emt 0:00:09]} 69. Kxe3 {[%emt 0:00:02]} Ke5 {[%emt 0:00:01]} 70. Kf3 {[%emt 0:00:16]} Nd5 {[%emt 0:00:04]} 71. Bc6 {[%emt 0:00:28]} Kd4 {[%emt 0:00:17]} 72. Bd7 {[%emt 0:00:10]} Ne7 {[%emt 0:00:28]} 73. Kf4 $2 {[%emt 0:00:13][%mdl 8192]} (73. Ke2 $17) 73... Kd3 $2 {[%emt 0:00:16]} (73... Ng6+ $1 $19 {and Black stays clearly on top.} 74. Kf5 Ne5) 74. Bb5+ $2 {[%emt 0:00:14][%mdl 8192] [#]} (74. Kf3 $17) 74... Kd2 $1 {[%emt 0:00:04]} 75. Kf3 {[%emt 0:00:16] [#]} Ke1 $2 {[%emt 0:00:03]} (75... Ng6 $1 $19 {has better winning chances.} 76. Ke4 Ne5) 76. Bc4 {[%emt 0:00:11]} Ng6 {[%emt 0:00:07] ( -> ...Ne5+)} 77. Bd5 $2 {[%emt 0:00:13][%mdl 8192]} (77. Kg2 $17) 77... Ne5+ {[%emt 0:00:04]} 78. Kf4 {[%emt 0:00:02]} Kf2 {[%emt 0:00:02]} 79. Be4 {[%emt 0:00:16]} Nc4 {[%emt 0:00:22]} (79... g5+ $142 80. Kf5 Kxg3 81. Kxf6 Nxg4+ 82. Kf5 Kh4 83. Bc6 Nf2 84. Bg2 h5 85. Ba8 g4 86. Kf4 Nh3+ 87. Ke3 Kg3 88. Ke4 Nf2+ 89. Kf5 h4 90. Bc6 h3 91. Ke5 h2 92. Bd5 h1=Q 93. Bxh1 Nxh1 94. Ke6 Kh3 95. Kf6 g3 96. Kf7 g2 97. Ke7 g1=Q 98. Kd6 Qd4+ 99. Kc7 Qd5 100. Kb6 Nf2 101. Kc7 Qe6 102. Kb8 Qc6 103. Ka7 Ne4 104. Kb8 Nc5 105. Ka7 Qb7#) 80. Bd5 {[%emt 0:00:12]} Nd6 {[%emt 0:00:04][%csl Gf6,Gh6][%cal Rg7g5] Black mates.} 81. g5 {[%emt 0:00:08]} hxg5+ {[%emt 0:00:13]} 82. Kg4 {[%emt 0:00:01]} Nb5 {[%emt 0:00:12]} 83. Kf5 {[%emt 0:00:20]} Kxg3 {[%emt 0:00:04]} 84. Kg6 {[%emt 0:00:00]} Kf4 {[%emt 0:00:05]} 85. Kxg7 {[%emt 0:00:13]} f5 {[%emt 0:00:08] Weighted Error Value: White=0.36/Black=0.22 (precise)} 0-1